Cogmind - Beta 17 @@@ ROGUE MODE // 2026.07.18 @ 16:19:59 Player: Blaf Result: Destroyed by G-34 Mercenary with Small Laser Performance ------------- Evolutions (0) 0 Regions Visited (2) 400 Robots Destroyed (24) 120 Value Destroyed (499) 499 Prototype IDs (0) 0 Alien Tech Used (0) 0 Bonus (0) 0 TOTAL SCORE: 1019 Bonus ------- None Cogmind --------- Core Integrity 0/250 Matter 33/300 Energy 250/250 System Corruption 0% Temperature Cool (6) Movement Rolling (100) Location -10/Mines Parts ------- > --- POWER (1) -------- Ion Engine > --- PROPULSION (2) --- Compact Wheel Compact Wheel > --- UTILITY (2) ------ Medium Storage Unit Hacking Suite > --- WEAPON (2) ------- Datajack > --- INVENTORY (10) --- Compact Wheel Compact Wheel Compact Wheel Compact Wheel Small Storage Unit Light Assault Rifle Peak State ------------ > --- POWER ------------ Ion Engine > --- PROPULSION ------- Wheel Wheel > --- UTILITY ---------- Medium Storage Unit Hacking Suite > --- WEAPON ----------- Datajack > --- INVENTORY -------- Aluminum Leg Small Storage Unit [Rating: 8] Favorites ----------- Power Ion Engine Engine Ion Engine Propulsion Aluminum Leg Leg Aluminum Leg Wheel Wheel Utility Medium Storage Unit Storage Medium Storage Unit Hackware Hacking Suite Protection Weapon Shielding Weapon Light Assault Rifle Energy Gun Small Laser Ballistic Gun Light Assault Rifle Launcher Grenade Launcher Special Melee Weapon Datajack Build | -11 -10 -10 ------- Run | Yrd Mat Min Slots Evolved . | . . . Power . | . . . Propulsion . | . . . Utility . | . . . Weapon . | . . . Parts Attached 22 | 6 16 . Power 3 | 1 2 . Engine 3 | 1 2 . Core . | . . . Reactor . | . . . Propulsion 8 | 2 6 . Treads . | . . . Leg 3 | 2 1 . Wheel 5 | . 5 . Hover . | . . . Flight . | . . . Utility 5 | 1 4 . Device . | . . . Storage 2 | 1 1 . Processor . | . . . Hackware 1 | . 1 . Protection 2 | . 2 . Artifact . | . . . Weapon 6 | 2 4 . Energy Gun 2 | 1 1 . Energy Cannon . | . . . Ballistic Gun 1 | 1 . . Ballistic Cannon . | . . . Launcher 2 | . 2 . Special Weapon . | . . . Impact Weapon . | . . . Slashing Weapon . | . . . Piercing Weapon . | . . . Special Melee Weapon 1 | . 1 . Unidentified Prototypes . | . . . Parts Lost 11 | . 11 . Power 2 | . 2 . Propulsion 3 | . 3 . Utility 2 | . 2 . Weapon 4 | . 4 . Highest Loss Streak 5 | . 5 . To Critical Strikes . | . . . Average Backups 4 | 1 4 6 Power . | . . . Propulsion 2 | . 2 4 Utility . | . . 1 Weapon . | . . 1 Tool/Special . | . . . Unused Backups 6 | . 2 4 Power . | . . . Propulsion 4 | . . 4 Utility 1 | . 1 . Weapon 1 | . 1 . Tool/Special . | . . . Average Slot Usage (%) 86 | . 86 85 Engine 11 | . 11 14 Leg 19 | . 20 . Wheel 7 | . 6 28 Storage 14 | . 14 14 Hackware 3 | . 2 14 Protection 6 | . 7 . Ballistic Gun 10 | . 10 . Launcher 9 | . 9 . Special Melee Weapon 3 | . 2 14 Peak Build Rating 8 | 6 8 8 Average Rating 6 | 4 6 8 On Entrance 4 | . 6 8 Avg Prop Armor Cover (%) . | . . . Naked Turns . | . . . Heaviest Build 20 | 12 20 16 Greatest Support 32 | 20 32 32 Greatest Overweight (x) 6 | . 6 . Average Overweight (x) . | . . . Largest Inventory Capacity 10 | 8 10 10 Average Capacity 9 | 6 9 10 Most Carried 6 | 3 6 6 Average Carried 4 | 1 4 6 Final Capacity 10 | 8 10 10 Final Carried 6 | 3 6 6 Class Distribution -------------------- 100% | Mutant Dominant Class ---------------- Mutant | -10/Materials Mutant | -10/Mines Resources | -11 -10 -10 ----------- Run | Yrd Mat Min Matter Collected 406 | 166 240 . Remotely . | . . . Salvage Created 382 | . 382 . Parts 36 | . 36 . Haulers Intercepted 1 | . 1 . Recyclers Shooed . | . . . Parts Field Recycled . | . . . Retrieved Matter . | . . . Parts Self-Destructed . | . . . Prevented . | . . . Parts Restored . | . . . Kills | -11 -10 -10 ------- Run | Yrd Mat Min Combat Hostiles Destroyed 14 | . 14 . Guns 3 | . 3 . AOE 11 | . 11 . Classes Destroyed 9 | . 9 . Worker 2 | . 2 . Builder 3 | . 3 . Tunneler 1 | . 1 . Hauler 1 | . 1 . Mechanic 1 | . 1 . Operator 1 | . 1 . Watcher 1 | . 1 . Swarmer 6 | . 6 . Grunt 8 | . 8 . Best Kill Streak 6 | . 6 . Combat Bots Only 4 | . 4 . Max Kills in Single Turn 3 | . 3 . Gunslinging . | . . . Exploded 3 | . 3 . Melee . | . . . Uniques/NPCs Destroyed . | . . . Combat | -11 -10 -10 -------- Run | Yrd Mat Min Hostile Shots Fired 111 | . 104 7 Missed 25 | . 24 1 Hits 86 | . 80 6 Projectile 86 | . 80 6 Critical Strikes 3 | . 3 . Actively Blocked 2 | . 2 . Damage Taken 1067 | . 987 80 Core 257 | . 229 28 Absorbed by Shields . | . . . Redirected to Shielding 101 | . 101 . Core Remaining (%) 100 | 100 . . Volleys Fired 92 | . 92 . Largest 2 | . 2 . Hottest 60 | . 60 . Shots Fired 109 | . 109 . Gun 93 | . 93 . Cannon . | . . . Launcher 16 | . 16 . Special . | . . . Kinetic 80 | . 80 . Thermal 1 | . 1 . Explosive 16 | . 16 . Electromagnetic 12 | . 12 . Robot Hit Streak 11 | . 11 . Robot Miss Streak 5 | . 5 . Penetration Max . | . . . Secondary Targets . | . . . Shots Hit Robots 72 | . 71 1 Core Hits 44 | 1 43 . Critical Kills . | . . . Critical Parts Destroyed . | . . . Critical Strikes . | . . . Melee Attacks 7 | . 5 2 Impact . | . . . Slashing . | . . . Piercing . | . . . Sneak Attacks 5 | . 5 . Combat Hostiles . | . . . Follow-up Attacks . | . . . Damage Inflicted 1839 | 8 1831 . Guns 497 | . 497 . Cannons . | . . . Explosions 1334 | . 1334 . Melee . | . . . Ramming 8 | 8 . . Kinetic 392 | . 392 . Thermal 172 | . 172 . Explosive 1162 | . 1162 . Electromagnetic 105 | . 105 . Impact . | . . . Slashing . | . . . Piercing . | . . . Highest Corruption . | . . . Average Corruption . | . . . Corruption Purged . | . . . Corruption Blocked . | . . . Overload Shots . | . . . Overflow Damage 22 | . 22 . Projectiles . | . . . Explosions 22 | . 22 . Melee . | . . . Knockbacks . | . . . Impact . | . . . Kinetic . | . . . Secondary . | . . . Self-Inflicted Damage 108 | . 108 . Shots 3 | . 3 . Rammed . | . . . Targets Rammed 1 | 1 . . Kicked 1 | 1 . . Crushed . | . . . Highest Temperature 35 | . 35 . Average Temperature 10 | . 10 . Received Heat Transfer 405 | . 357 48 Siege Activations . | . . . Martial Activations . | . . . Shielding Activations . | . . . Robots Disrupted . | . . . Combat Hostiles . | . . . Robots Corrupted . | . . . Combat Hostiles . | . . . Parts Fried . | . . . Impact Corruptions . | . . . Robots Melted . | . . . Combat Hostiles . | . . . Parts Melted . | . . . Heat Transferred 200 | . 200 . Parts Sabotaged . | . . . Parts Stolen . | . . . Parts Stripped . | . . . Power Chain Reactions 2 | . 2 . Alert | -11 -10 -10 ------- Run | Yrd Mat Min Maximum Alert Level 1 | . 1 . Low Security (%) 72 | 100 68 100 Level 1 27 | . 31 . Level 2 . | . . . Level 3 . | . . . Level 4 . | . . . Level 5 . | . . . High Security . | . . . Max Security . | . . . Peak Influence 273 | . 273 22 Initial 22 | . . 22 Average 136 | . 153 15 Influence Increases 635 | . 620 15 Destroy 0b10 Robot/C 280 | . 280 . Destroy 0b10 Robot/NC 50 | . 50 . Destroy Leader 64 | . 64 . Disable Machine 105 | . 105 . Destroy Structure 106 | . 106 . Lose Combat Pursuer 30 | . 15 15 Influence Decreases 618 | . 562 56 Entered New Map 36 | . . 36 Time Decay 472 | . 452 20 Lost Part 110 | . 110 . Squads Dispatched 2 | . 2 . Investigation . | . . . Extermination . | . . . Reinforcement 2 | . 2 . Assault . | . . . Garrison . | . . . Intercept . | . . . Searches Triggered . | . . . Construction Impeded . | . . . Haulers Reinforced . | . . . Active Scanning Responses . | . . . Cargo Convoy Interrupts . | . . . Stealth | -11 -10 -10 --------- Run | Yrd Mat Min Distress Signals 2 | . 2 . Communications Jammed . | . . . Distress Signals . | . . . Times Spotted 35 | . 31 4 Peak Tracking Total 4 | . 4 4 Tactical Retreats 2 | . 1 1 Traps | -11 -10 -10 ------- Run | Yrd Mat Min Traps Triggered 4 | . 4 . Indirectly . | . . . Trap Hack Attempts . | . . . Triggered . | . . . Disarmed . | . . . Reprogrammed . | . . . Reused . | . . . Traps Extracted . | . . . Installed . | . . . Triggered . | . . . Machines | -11 -10 -10 ---------- Run | Yrd Mat Min Machines Disabled 7 | . 7 . Max in Single Turn 3 | . 3 . Machines Repaired . | . . . Machines Dismantled . | . . . Machines Sabotaged . | . . . Overloaded Fab Kills . | . . . Hacking | -11 -10 -10 --------- Run | Yrd Mat Min Machines Accessed 1 | . 1 . Terminals . | . . . Fabricators . | . . . Repair Stations . | . . . Recycling Units 1 | . 1 . Scanalyzers . | . . . Garrison Access . | . . . Total Hacks 3 | . 3 . Successful . | . . . Failed 3 | . 3 . Catastrophic . | . . . Database Lockouts . | . . . Manual . | . . . Terminals . | . . . Fabricators . | . . . Repair Stations . | . . . Recycling Units 3 | . 3 . Scanalyzers . | . . . Garrison Access . | . . . Terminal Hacks . | . . . Fabricator Hacks . | . . . Repair Station Hacks . | . . . Recycling Unit Hacks . | . . . Scanalyzer . | . . . Garrison Access Hacks . | . . . Unauthorized Hacks . | . . . Terminals . | . . . Fabricators . | . . . Repair Stations . | . . . Recycling Units . | . . . Scanalyzers . | . . . Garrison Access . | . . . Data Cores Recovered . | . . . Used . | . . . Hacking Detections 1 | . 1 . Full Trace Events . | . . . Feedback Events . | . . . Feedback Blocked . | . . . Robot Schematics Acquired . | . . . Robots Built . | . . . Authchips . | . . . Time . | . . . Total Robot Build Rating . | . . . Part Schematics Acquired . | . . . Parts Built . | . . . Authchips . | . . . Time . | . . . Total Part Build Rating . | . . . Part Studies Acquired . | . . . Parts Repaired . | . . . Time . | . . . Parts Recycled . | . . . Recycled Matter . | . . . Retrieved Matter . | . . . Retrieved Components . | . . . Parts Scanalyzed . | . . . Part Schematics Acquired . | . . . Parts Damaged . | . . . Bothacking | -11 -10 -10 ------------ Run | Yrd Mat Min Used RIF Installer . | . . . Robots Hacked 2 | . 1 1 Non-combat 1 | . 1 . Combat 1 | . . 1 Robot Hacks Applied 3 | . 2 1 parse_system 2 | . 1 1 no_distress 1 | . 1 . Relay Couplers Released . | . . . Fabnet Peak Effective % . | . . . Robots Rewired . | . . . Allies Hacked . | . . . Hacks Repelled . | . . . Allies | -11 -10 -10 -------- Run | Yrd Mat Min Total Allies . | . . . Largest Group . | . . . Highest-Rated Group . | . . . Highest-Rated Ally . | . . . Total Orders . | . . . Ally Attacks . | . . . Total Damage . | . . . Kills . | . . . Allies Corrupted . | . . . Allies Melted . | . . . Intel | -11 -10 -10 ------- Run | Yrd Mat Min Active Infowar (turns) . | . . . Robot Analysis Total . | . . . Derelict Logs Recovered . | . . . Drone Launches . | . . . Drone Recoveries . | . . . Exploration | -11 -10 -10 ------------- Run | Yrd Mat Min Turns Passed 1368 | 106 1212 50 Spaces Moved 993 | 83 865 45 Core 15 | 8 7 . Treads . | . . . Legs 667 | 75 592 . Wheels 311 | . 266 45 Hover . | . . . Flight . | . . . Fastest Speed 50 | 50 80 100 Average Speed 110 | 113 111 100 Slowest Speed 350 | 120 350 100 Overloaded Moves . | . . . Propulsion Burnouts . | . . . Robots Hopped . | . . . Potential Cave-ins . | . . . Cave-ins Triggered . | . . . Exploration Rate (%) 33 | 4 74 22 Regions Visited 2 Branch Regions 1 Pre-discovered Areas . | . . . Known Exits Taken . | . . . Unknown Exits Taken 2 | 1 1 . Scrap Searched . | . . . Spaces Dug . | . . . Terrain Destroyed 107 | . 107 . Melee . | . . . Projectile . | . . . AOE 107 | . 107 . Terrain Rammed . | . . . Walls Destroyed . | . . . Machines Disabled . | . . . Actions | -11 -10 -10 --------- Run | Yrd Mat Min Total 1153 | 92 1012 49 Wait 15 | . 13 2 Move 991 | 82 864 45 Hop . | . . . Pick Up 11 | 3 8 . Fast Attach 21 | 6 15 . Attach 4 | . 4 . Detach 1 | . 1 . Swap 4 | . 4 . Drop 6 | . 6 . Fire 92 | . 92 . Melee 7 | . 5 2 Ram . | . . . Kick 1 | 1 . . Crush . | . . . Escape Stasis . | . . . Rewire . | . . . Trap . | . . . Miscellaneous . | . . . Route ------- -11/Scrapyard -10/Materials (discovered 3 exits: [*Mat x2] / [*Min]) -10/Mines History --------- Turn | Location | Event 5 | -11/Scrapyard | Discovered new exit (range 16) 107 | -11/Scrapyard | Entered Materials 311 | -10/Materials | Build established: Mutant 509 | -10/Materials | Discovered new exit (range 16) 652 | -10/Materials | Discovered new exit (range 12) 1010 | -10/Materials | Core integrity fell below 50% 1052 | -10/Materials | Lost 5 parts (1p2n2w) 1067 | -10/Materials | Core integrity fell below 20% 1109 | -10/Materials | Lost 3 parts (1n1u1w) 1201 | -10/Materials | Discovered new exit (range 10) 1319 | -10/Materials | Entered Mines 1369 | -10/Mines | Destroyed by G-34 Mercenary with Small Laser Last Messages --------------- 01147_ Sneak attack on K-01 Serf. 01147_ Jacked K-01 Serf... >>find_chute No applicable chute records found in memory. 01149_ Sneak attack on K-01 Serf. 01149_ Jacked K-01 Serf... 01201_ EXIT=FOUND 01208_ Connecting with Recycling Unit... 01208_ Current location identified: Materials 01236_ Dropped Wheel. 01238_ Acquired Com. Wheel. 01248_ Dropped Aluminum Leg. 01308_ Acquired Lgt. Assault Rifle. LOCATION=UNKNOWN GOAL=ESCAPE Something is scanning the area. 01341_ Jacked G-47 Trooper... >>parse_system Reading system data... 01366_ K-01 Serf collects debris. Map ----- +----------------------------------------------------+ | | | | | | | | | | | | | | | | | | | ?????????????????????????????????????????????????? | | ?????????????????????????????????????????????????? | | ?????????????????????????????????????????????????? | | ?????????????????????????????????????????????????? | | ?????????????????????????????????????????????????? | | ?????????????????????????????????????????????????? | | ?????????????????????????????????????????????????? | | ????????????????????????####?????????????????????? | | ????????????????????##### ##????????????????????? | | ???????????????????## ##???????######??????? | | ??????????????###### #####??## ##?????? | | ?????????????? g #### ###???? | | ???????????????????# ##??? | | ??????????????# k### ## #??? | | ??????????????# uu#### ## #??? | | ??????????????# #### #??###### #??? | | ????????????????????## @ #???????# #??? | | ?????????????????????## #???????# #??? | | ??????????????????????## ##???????## #??? | | ???????????????????????#####?????????### ##?? | | ???????????????????????????????????????### ##? | | ?????????????????????????????????????????## #? | | ??????????????????????????????????????????# #? | | ??????????????????????????????????????????# # #? | | ??????????????????????????????????????????# #?##? | | ??????????????????????????????????????????# #???? | | ??????????????????????????????????????????# #???? | | ??????????????????????????????????# #### #???? | | ?????????????????????????????????# #???? | | ??????????????????????????????# ### ##???? | | ?????????????????????????????# ????????# ###### | | ??????????????????????????????????????????# # | | ??????????????????????????????????????????###### # | | ???????????????????????????????????????#######?# # | | ?????????????????????????????????????### ### # | | ?????????????????????????????????????# | | ????????????????????????????????????# | | ?????????????????????????????????# ## | | ?????????????????????????????????# !! #?#### | | ?????????????????????????????????# ! #?????### | | ???????????????????????????????? !! #????????? | +----------------------------------------------------+ Best States ------------- Heat Dissipation 25 Energy Generation 10 Energy Capacity 250 Matter Stores 208 Matter Capacity 300 Sight Range 16 Terrain Scan Density 10 Propulsion Shielding 33 Weapon Shielding 33 Evasion (%) 55 Offensive Hacking 10 Item Schematics ----------------- None Robot Schematics ------------------ None Fabricated ------------ Nothing Repaired ---------- Nothing Studied --------- None Alien Tech Used ----------------- None Achievements -------------- None Challenges ------------ None Game ------ Seed ArmoredLauncherMonowheel Manual? 0 Play Time 00:11:35 Cumulative 24.6 hours Start 2026.07.18 @ 16:08:56 End 2026.07.18 @ 16:19:59 Sessions 1 Manual Loads 0 Difficulty Rogue Special Mode None Game No. 40 Rogue 40 Adventurer 0 Explorer 0 Win Type - Total 0 Types 0/0/0/0/0/0/0/0/0/0 Lore% 8 Gallery% 17 Achievement% 17 Wizard Run 0 Options --------- Layout 1 ASCII 0 Keyboard 1 Movement Arrows Keybinds 0 Fullscreen 1 Font 24/Smallcaps Map View 50x35 Zoom Use 0% Tactical HUD 1 Map Filters NONE Filters NONE Steam 1 RUN: e0f6a5d0-1dc8-44dc-841a-d68b9cfd8acb